Workbook

Sheet Chapa de Cabeça
M1: a' | N1: =K6+0.5*K8 -> 31
A2: NSd (Esforço Axial) | B2: 0 | C2: kN | F2: y (cm) | H2: 4.893236721 | J2: Fy da Chapa | K2: 25 | L2: kN/cm² | M2: e1/2 | N2: =K4/2 -> 25
A3: Msd (Momento Fletor) | B3: 7000 | C3: kN.cm | F3: Momento Estático Superior | H3: =SUM(G11:G26) -> 119.7181737 | J3: Espessura da Chapa | K3: 16.70108744 | L3: mm | M3: b+0,5db | N3: =K7+0.5*K8 -> 31
A4: VSd (Esforço Cortante) | B4: 0 | C4: kN | F4: Momento Estático Inferior | H4: =((B5/10)*H2^2)/2 -> 119.718828 | J4: e1 | K4: 50 | L4: mm | M4: p | N4: =MIN(N2:N3)+MIN(N3,K5) -> 50
A5: A Largura da Chapa) | B5: 100 | C5: mm | F5: Delta | H5: =H4-H3 -> 0.0006543463514 | J5: e2 | K5: 25 | L5: mm | M5: d'(mm) | N5: =K8+1.6 -> 13.6
A6: B (Altura da Chapa) | B6: 300 | C6: mm | F6: Ix (cm4) | H6: =((B5/10)*H2^3)/3+SUM(H11:H26) -> 2494.16513 | J6: a | K6: 25 | L6: mm | M6: delta | N6: =(N4-N5)/N4 -> 0.728
A7: Qtd de parafusos por linha | B7: 2 | C7: Unid | J7: b | K7: 25 | L7: mm | M7: Ma(kN.cm) | N7: =((1.5*(N4/10)*((K3/10)^2)*K2)/6)/1.1 -> 79.24043229
J8: db | K8: 12 | L8: mm | M8: alfa | N8: =((MAX(I11:I26)*((K7-0.5*K8)/10))-N7)/(N6*N7) -> 0.9897831569
M9: =IF(N8<=1,"APROVADO","REPROVADO") -> APROVADO
A10: Linha | B10: dy(mm) | C10: Diam. (mm) | D10: Fu(kN/cm²) | E10: Cisalh. No plano de Rosca? | F10: Área (cm²) | G10: Mom. Estático | H10: Ai(dy-y)² | I10: Tração por parafuso (kN) | J10: Admissível(kN) | K10: Tração Adicional devido ao Efeito Alavanca | L10: Cisalhamento Por parafuso | M10: Adm. | N10: Esforços Combinados: | O10: Status
A11: d1 | B11: 25 | C11: =IF(B11="","",$K$8) -> 12 | D11: 82.5 | E11: SIM | F11: =IF(C11="","",((((C11/10)^2)*PI())/4)*$B$7) -> 2.261946711 | G11: =IF(B11="","",IF(B11<$B$6/6,0,((B11/10)-$H$2)*F11)) -> 0 | H11: =IF(B11="","",IF(B11<$B$6/6,0,(((B11/10)-$H$2)^2)*F11)) -> 0 | I11: =IF(B11="","",IF(H11=0,0,($B$3/$H$6)*((B11/10)-$H$2))*(F11/$B$7)+($B$2/(COUNTIF($B$11:$B$26,">0")*$B$7))) -> 0 | J11: =IF(B11="","",(0.75*(F11/$B$7)*D11)/1.35) -> 51.83627878 | K11: =IF(B11="","",IF($N$8>=0,IF((I11*(($K$7-0.5*$K$8)/10)-$N$7)/($K$6+0.5*$K$8)<0,0,(I11*(($K$7-0.5*$K$8)/10)-$N$7)/(($K$6+0.5*$K$8)/10)),0)) -> 0 | L11: =IF(B11="","",$B$4/($B$7*(COUNTIF($B$11:$B$26,">0")))) -> 0 | M11: =IF(B11="","",IF(E11="SIM",(0.4*(F11/$B$7)*D11)/1.35,(0.5*(F11/$B$7)*D11)/1.35)) -> 27.64601535 | N11: =IF(B11="","",((I11+K11)/J11)^2+(L11/M11)^2) -> 0 | O11: =IF(B11="","",IF(OR($H$5>0.001,$H$5<-0.001),"CALCULAR Y",IF(N11<1,"APROVADO","REPROVADO"))) -> APROVADO
A12: d2 | B12: 75 | C12: =IF(B12="","",$K$8) -> 12 | D12: 82.5 | E12: SIM | F12: =IF(C12="","",((((C12/10)^2)*PI())/4)*$B$7) -> 2.261946711 | G12: =IF(B12="","",IF(B12<$B$6/6,0,((B12/10)-$H$2)*F12)) -> 5.896359624 | H12: =IF(B12="","",IF(B12<$B$6/6,0,(((B12/10)-$H$2)^2)*F12)) -> 15.37041375 | I12: 8.274215061 | J12: =IF(B12="","",(0.75*(F12/$B$7)*D12)/1.35) -> 51.83627878 | K12: 0 | L12: =IF(B12="","",$B$4/($B$7*(COUNTIF($B$11:$B$26,">0")))) -> 0 | M12: =IF(B12="","",IF(E12="SIM",(0.4*(F12/$B$7)*D12)/1.35,(0.5*(F12/$B$7)*D12)/1.35)) -> 27.64601535 | N12: =IF(B12="","",((I12+K12)/J12)^2+(L12/M12)^2) -> 0.02547921102 | O12: =IF(B12="","",IF(OR($H$5>0.001,$H$5<-0.001),"CALCULAR Y",IF(N12<1,"APROVADO","REPROVADO"))) -> APROVADO
A13: d3 | B13: 150 | C13: 12 | D13: 82.5 | E13: SIM | F13: =IF(C13="","",((((C13/10)^2)*PI())/4)*$B$7) -> 2.261946711 | G13: =IF(B13="","",IF(B13<$B$6/6,0,((B13/10)-$H$2)*F13)) -> 22.86095995 | H13: =IF(B13="","",IF(B13<$B$6/6,0,(((B13/10)-$H$2)^2)*F13)) -> 231.0503106 | I13: =IF(B13="","",IF(H13=0,0,($B$3/$H$6)*((B13/10)-$H$2))*(F13/$B$7)+($B$2/(COUNTIF($B$11:$B$26,">0")*$B$7))) -> 32.08021749 | J13: =IF(B13="","",(0.75*(F13/$B$7)*D13)/1.35) -> 51.83627878 | K13: 0 | L13: =IF(B13="","",$B$4/($B$7*(COUNTIF($B$11:$B$26,">0")))) -> 0 | M13: =IF(B13="","",IF(E13="SIM",(0.4*(F13/$B$7)*D13)/1.35,(0.5*(F13/$B$7)*D13)/1.35)) -> 27.64601535 | N13: 0.3830072318 | O13: =IF(B13="","",IF(OR($H$5>0.001,$H$5<-0.001),"CALCULAR Y",IF(N13<1,"APROVADO","REPROVADO"))) -> APROVADO
A14: d4 | B14: 225 | C14: 12 | D14: 82.5 | E14: SIM | F14: =IF(C14="","",((((C14/10)^2)*PI())/4)*$B$7) -> 2.261946711 | G14: =IF(B14="","",IF(B14<$B$6/6,0,((B14/10)-$H$2)*F14)) -> 39.82556028 | H14: =IF(B14="","",IF(B14<$B$6/6,0,(((B14/10)-$H$2)^2)*F14)) -> 701.1992123 | I14: 55.88621993 | J14: =IF(B14="","",(0.75*(F14/$B$7)*D14)/1.35) -> 51.83627878 | K14: 8.691414702 | L14: =IF(B14="","",$B$4/($B$7*(COUNTIF($B$11:$B$26,">0")))) -> 0 | M14: =IF(B14="","",IF(E14="SIM",(0.4*(F14/$B$7)*D14)/1.35,(0.5*(F14/$B$7)*D14)/1.35)) -> 27.64601535 | N14: 1.552017569 | O14: =IF(B14="","",IF(OR($H$5>0.001,$H$5<-0.001),"CALCULAR Y",IF(N14<1,"APROVADO","REPROVADO"))) -> REPROVADO
A15: d5 | B15: 275 | C15: 12 | D15: 82.5 | E15: SIM | F15: =IF(C15="","",((((C15/10)^2)*PI())/4)*$B$7) -> 2.261946711 | G15: =IF(B15="","",IF(B15<$B$6/6,0,((B15/10)-$H$2)*F15)) -> 51.13529384 | H15: =IF(B15="","",IF(B15<$B$6/6,0,(((B15/10)-$H$2)^2)*F15)) -> 1156.003483 | I15: 71.75688822 | J15: =IF(B15="","",(0.75*(F15/$B$7)*D15)/1.35) -> 51.83627878 | K15: 18.41859849 | L15: =IF(B15="","",$B$4/($B$7*(COUNTIF($B$11:$B$26,">0")))) -> 0 | M15: =IF(B15="","",IF(E15="SIM",(0.4*(F15/$B$7)*D15)/1.35,(0.5*(F15/$B$7)*D15)/1.35)) -> 27.64601535 | N15: 3.026281732 | O15: =IF(B15="","",IF(OR($H$5>0.001,$H$5<-0.001),"CALCULAR Y",IF(N15<1,"APROVADO","REPROVADO"))) -> REPROVADO
A16: d6 | F16: =IF(C16="","",((((C16/10)^2)*PI())/4)*$B$7) ->  | G16: =IF(B16="","",IF(B16<$B$6/6,0,((B16/10)-$H$2)*F16)) ->  | H16: =IF(B16="","",IF(B16<$B$6/6,0,(((B16/10)-$H$2)^2)*F16)) ->  | J16: =IF(B16="","",(0.75*(F16/$B$7)*D16)/1.35) ->  | L16: =IF(B16="","",$B$4/($B$7*(COUNTIF($B$11:$B$26,">0")))) ->  | M16: =IF(B16="","",IF(E16="SIM",(0.4*(F16/$B$7)*D16)/1.35,(0.5*(F16/$B$7)*D16)/1.35)) ->  | O16: =IF(B16="","",IF(OR($H$5>0.001,$H$5<-0.001),"CALCULAR Y",IF(N16<1,"APROVADO","REPROVADO"))) -> 
A17: d7 | F17: =IF(C17="","",((((C17/10)^2)*PI())/4)*$B$7) ->  | G17: =IF(B17="","",IF(B17<$B$6/6,0,((B17/10)-$H$2)*F17)) ->  | H17: =IF(B17="","",IF(B17<$B$6/6,0,(((B17/10)-$H$2)^2)*F17)) ->  | J17: =IF(B17="","",(0.75*(F17/$B$7)*D17)/1.35) ->  | L17: =IF(B17="","",$B$4/($B$7*(COUNTIF($B$11:$B$26,">0")))) ->  | M17: =IF(B17="","",IF(E17="SIM",(0.4*(F17/$B$7)*D17)/1.35,(0.5*(F17/$B$7)*D17)/1.35)) ->  | O17: =IF(B17="","",IF(OR($H$5>0.001,$H$5<-0.001),"CALCULAR Y",IF(N17<1,"APROVADO","REPROVADO"))) -> 
A18: d8 | F18: =IF(C18="","",((((C18/10)^2)*PI())/4)*$B$7) ->  | G18: =IF(B18="","",IF(B18<$B$6/6,0,((B18/10)-$H$2)*F18)) ->  | H18: =IF(B18="","",IF(B18<$B$6/6,0,(((B18/10)-$H$2)^2)*F18)) ->  | J18: =IF(B18="","",(0.75*(F18/$B$7)*D18)/1.35) ->  | L18: =IF(B18="","",$B$4/($B$7*(COUNTIF($B$11:$B$26,">0")))) ->  | M18: =IF(B18="","",IF(E18="SIM",(0.4*(F18/$B$7)*D18)/1.35,(0.5*(F18/$B$7)*D18)/1.35)) ->  | O18: =IF(B18="","",IF(OR($H$5>0.001,$H$5<-0.001),"CALCULAR Y",IF(N18<1,"APROVADO","REPROVADO"))) -> 
A19: d9 | F19: =IF(C19="","",((((C19/10)^2)*PI())/4)*$B$7) ->  | G19: =IF(B19="","",IF(B19<$B$6/6,0,((B19/10)-$H$2)*F19)) ->  | H19: =IF(B19="","",IF(B19<$B$6/6,0,(((B19/10)-$H$2)^2)*F19)) ->  | J19: =IF(B19="","",(0.75*(F19/$B$7)*D19)/1.35) ->  | L19: =IF(B19="","",$B$4/($B$7*(COUNTIF($B$11:$B$26,">0")))) ->  | M19: =IF(B19="","",IF(E19="SIM",(0.4*(F19/$B$7)*D19)/1.35,(0.5*(F19/$B$7)*D19)/1.35)) ->  | O19: =IF(B19="","",IF(OR($H$5>0.001,$H$5<-0.001),"CALCULAR Y",IF(N19<1,"APROVADO","REPROVADO"))) -> 
A20: d10 | F20: =IF(C20="","",((((C20/10)^2)*PI())/4)*$B$7) ->  | G20: =IF(B20="","",IF(B20<$B$6/6,0,((B20/10)-$H$2)*F20)) ->  | H20: =IF(B20="","",IF(B20<$B$6/6,0,(((B20/10)-$H$2)^2)*F20)) ->  | J20: =IF(B20="","",(0.75*(F20/$B$7)*D20)/1.35) ->  | L20: =IF(B20="","",$B$4/($B$7*(COUNTIF($B$11:$B$26,">0")))) ->  | M20: =IF(B20="","",IF(E20="SIM",(0.4*(F20/$B$7)*D20)/1.35,(0.5*(F20/$B$7)*D20)/1.35)) ->  | O20: =IF(B20="","",IF(OR($H$5>0.001,$H$5<-0.001),"CALCULAR Y",IF(N20<1,"APROVADO","REPROVADO"))) -> 
A21: d11 | F21: =IF(C21="","",((((C21/10)^2)*PI())/4)*$B$7) ->  | G21: =IF(B21="","",IF(B21<$B$6/6,0,((B21/10)-$H$2)*F21)) ->  | H21: =IF(B21="","",IF(B21<$B$6/6,0,(((B21/10)-$H$2)^2)*F21)) ->  | J21: =IF(B21="","",(0.75*(F21/$B$7)*D21)/1.35) ->  | L21: =IF(B21="","",$B$4/($B$7*(COUNTIF($B$11:$B$26,">0")))) ->  | M21: =IF(B21="","",IF(E21="SIM",(0.4*(F21/$B$7)*D21)/1.35,(0.5*(F21/$B$7)*D21)/1.35)) ->  | O21: =IF(B21="","",IF(OR($H$5>0.001,$H$5<-0.001),"CALCULAR Y",IF(N21<1,"APROVADO","REPROVADO"))) -> 
A22: d12 | F22: =IF(C22="","",((((C22/10)^2)*PI())/4)*$B$7) ->  | G22: =IF(B22="","",IF(B22<$B$6/6,0,((B22/10)-$H$2)*F22)) ->  | H22: =IF(B22="","",IF(B22<$B$6/6,0,(((B22/10)-$H$2)^2)*F22)) ->  | J22: =IF(B22="","",(0.75*(F22/$B$7)*D22)/1.35) ->  | L22: =IF(B22="","",$B$4/($B$7*(COUNTIF($B$11:$B$26,">0")))) ->  | M22: =IF(B22="","",IF(E22="SIM",(0.4*(F22/$B$7)*D22)/1.35,(0.5*(F22/$B$7)*D22)/1.35)) ->  | O22: =IF(B22="","",IF(OR($H$5>0.001,$H$5<-0.001),"CALCULAR Y",IF(N22<1,"APROVADO","REPROVADO"))) -> 
A23: d13 | F23: =IF(C23="","",((((C23/10)^2)*PI())/4)*$B$7) ->  | G23: =IF(B23="","",IF(B23<$B$6/6,0,((B23/10)-$H$2)*F23)) ->  | H23: =IF(B23="","",IF(B23<$B$6/6,0,(((B23/10)-$H$2)^2)*F23)) ->  | J23: =IF(B23="","",(0.75*(F23/$B$7)*D23)/1.35) ->  | L23: =IF(B23="","",$B$4/($B$7*(COUNTIF($B$11:$B$26,">0")))) ->  | M23: =IF(B23="","",IF(E23="SIM",(0.4*(F23/$B$7)*D23)/1.35,(0.5*(F23/$B$7)*D23)/1.35)) ->  | O23: =IF(B23="","",IF(OR($H$5>0.001,$H$5<-0.001),"CALCULAR Y",IF(N23<1,"APROVADO","REPROVADO"))) -> 
A24: d14 | F24: =IF(C24="","",((((C24/10)^2)*PI())/4)*$B$7) ->  | G24: =IF(B24="","",IF(B24<$B$6/6,0,((B24/10)-$H$2)*F24)) ->  | H24: =IF(B24="","",IF(B24<$B$6/6,0,(((B24/10)-$H$2)^2)*F24)) ->  | J24: =IF(B24="","",(0.75*(F24/$B$7)*D24)/1.35) ->  | L24: =IF(B24="","",$B$4/($B$7*(COUNTIF($B$11:$B$26,">0")))) ->  | M24: =IF(B24="","",IF(E24="SIM",(0.4*(F24/$B$7)*D24)/1.35,(0.5*(F24/$B$7)*D24)/1.35)) ->  | O24: =IF(B24="","",IF(OR($H$5>0.001,$H$5<-0.001),"CALCULAR Y",IF(N24<1,"APROVADO","REPROVADO"))) -> 
A25: d15 | F25: =IF(C25="","",((((C25/10)^2)*PI())/4)*$B$7) ->  | G25: =IF(B25="","",IF(B25<$B$6/6,0,((B25/10)-$H$2)*F25)) ->  | H25: =IF(B25="","",IF(B25<$B$6/6,0,(((B25/10)-$H$2)^2)*F25)) ->  | J25: =IF(B25="","",(0.75*(F25/$B$7)*D25)/1.35) ->  | L25: =IF(B25="","",$B$4/($B$7*(COUNTIF($B$11:$B$26,">0")))) ->  | M25: =IF(B25="","",IF(E25="SIM",(0.4*(F25/$B$7)*D25)/1.35,(0.5*(F25/$B$7)*D25)/1.35)) ->  | O25: =IF(B25="","",IF(OR($H$5>0.001,$H$5<-0.001),"CALCULAR Y",IF(N25<1,"APROVADO","REPROVADO"))) -> 
A26: d16 | F26: =IF(C26="","",((((C26/10)^2)*PI())/4)*$B$7) ->  | G26: =IF(B26="","",IF(B26<$B$6/6,0,((B26/10)-$H$2)*F26)) ->  | H26: =IF(B26="","",IF(B26<$B$6/6,0,(((B26/10)-$H$2)^2)*F26)) ->  | J26: =IF(B26="","",(0.75*(F26/$B$7)*D26)/1.35) ->  | L26: =IF(B26="","",$B$4/($B$7*(COUNTIF($B$11:$B$26,">0")))) ->  | M26: =IF(B26="","",IF(E26="SIM",(0.4*(F26/$B$7)*D26)/1.35,(0.5*(F26/$B$7)*D26)/1.35)) ->  | O26: =IF(B26="","",IF(OR($H$5>0.001,$H$5<-0.001),"CALCULAR Y",IF(N26<1,"APROVADO","REPROVADO"))) -> 
L27: =IF(B27="","",IF(E27="SIM",(0.4*(F27/$B$7)*D27)/1.35,(0.5*(F27/$B$7)*D27)/1.35)) -> 
